lending/lending_fUSD_20260206
["ID","MTS","AMOUNT","RATE_DAILY","PERIOD"]
[404657022,1770388107060,-300.0,0.00010276,2]
[404657023,1770388107113,-3466.8852,0.00010276,2]
[404657024,1770388108000,232.0,0.00010275,2]
[404657026,1770388113193,9923.69284145,0.00033,120]
[404657027,1770388114559,500.0,0.00044111,30]
[404657029,1770388115963,-5000.01,0.00010276,2]
[404657030,1770388121647,883.99608815,0.00010176,2]
[404657031,1770388125257,7647.68503896,0.00010266,2]
[404657032,1770388125281,10000.01,0.00010266,2]
[404657033,1770388125306,10000.01,0.00010266,2]
[404657034,1770388125329,10000.01,0.00010266,2]
[404657035,1770388125355,10000.01,0.00010266,2]
[404657036,1770388125378,10000.01,0.00010266,2]
[404657037,1770388125402,7054.87821116,0.00010266,2]
[404657038,1770388130877,2500.0,0.00010275,2]
[404657039,1770388139396,445.13178884,0.00010176,2]
[404657040,1770388139425,881.59626605,0.00010176,2]
[404657041,1770388141475,300.0,0.00010275,2]
[404657042,1770388158161,-5187.892248,0.00010276,2]
[404657043,1770388161411,8818.41373395,0.00010275,2]
[404657044,1770388161438,10000.01,0.00010275,2]
[404657045,1770388161464,10000.01,0.00010275,2]
[404657046,1770388161488,10000.01,0.00010275,2]
[404657047,1770388161513,10000.01,0.00010275,2]
[404657048,1770388161538,10000.01,0.00010275,2]
[404657049,1770388161562,10000.01,0.00010275,2]
[404657050,1770388161588,10000.01,0.00010275,2]
[404657051,1770388161612,10000.01,0.00010275,2]
[404657052,1770388161638,10000.01,0.00010275,2]
[404657053,1770388168205,3374.2845949,0.00035616,120]
[404657061,1770388231580,-549.90444418,0.00010176,2]
[404657062,1770388231604,-291.83651689,0.00010176,2]
[404657064,1770388231614,-234.0,0.00010176,2]
[404657067,1770388231628,-248.45980372,0.00010176,2]
[404657069,1770388231638,-300.0,0.00010201,2]
[404657071,1770388231647,-250.0,0.00010225,2]
[404657072,1770388231657,-160.63400933,0.00010266,2]
[404657073,1770388231672,-1200.0,0.00010274,2]
[404657074,1770388231681,-300.0,0.00010274,2]
[404657075,1770388231691,-300.0,0.00010274,2]
[404657076,1770388231701,-300.0,0.00010274,2]
[404657077,1770388231710,-300.0,0.00010274,2]
[404657078,1770388231720,-150.0,0.00010274,2]
[404657079,1770388231730,-19572.07847558,0.00010275,2]
[404657080,1770388231742,-2664.35,0.00010275,2]
[404657081,1770388231753,-407.99988999,0.00010275,2]
[404657082,1770388231765,-245189.59627736,0.00010275,2]
[404657083,1770388231776,-753.94627524,0.00010275,2]
[404657084,1770388231788,-1337.70986208,0.00010275,2]
[404657085,1770388231800,-1257.02204758,0.00010275,2]
[404657086,1770388231811,-17388.52792394,0.00010275,2]
[404657089,1770388231924,-306.0,0.00010275,2]
[404657091,1770388231935,-298.1025574,0.00010275,2]
[404657093,1770388231947,-1141.15245688,0.00010275,2]
[404657096,1770388231957,-296.23184173,0.00010275,2]
[404657098,1770388231967,-2224.19831453,0.00010275,2]
[404657100,1770388231976,-2224.19831453,0.00010275,2]
[404657102,1770388231986,-2224.19831453,0.00010275,2]
[404657103,1770388231995,-2224.19831453,0.00010275,2]
[404657105,1770388232005,-2224.19831453,0.00010275,2]
[404657107,1770388232015,-2224.19831453,0.00010275,2]
[404657110,1770388232029,-1231.61138518,0.00010275,2]
[404657179,1770388237648,-678.9759166,0.00010275,2]
[404657180,1770388237660,-313.61101275,0.00010275,2]
[404657181,1770388237672,-485.5016344,0.00010275,2]
[404657182,1770388237731,-1738.69668013,0.00010275,2]
[404657183,1770388237741,-2224.19831453,0.00010275,2]
[404657184,1770388237750,-2224.19831453,0.00010275,2]
[404657185,1770388237759,-2224.19831453,0.00010275,2]
[404657186,1770388237768,-2224.19831453,0.00010275,2]
[404657187,1770388237778,-444.43676759,0.00010275,2]
[404657188,1770388237789,-1779.76154694,0.00010275,2]
[404657189,1770388237799,-2224.19831453,0.00010275,2]
[404657190,1770388237808,-2224.19831453,0.00010275,2]
[404657191,1770388237817,-2224.19831453,0.00010275,2]
[404657192,1770388237826,-2224.19831453,0.00010275,2]
[404657193,1770388237836,-2224.19831453,0.00010275,2]
[404657194,1770388237845,-2224.19831453,0.00010275,2]
[404657195,1770388237854,-2224.19831453,0.00010275,2]
[404657196,1770388237864,-2224.19831453,0.00010275,2]
[404657197,1770388237873,-2224.19831453,0.00010275,2]
[404657198,1770388237883,-2224.19831453,0.00010275,2]
[404657199,1770388237893,-2224.19831453,0.00010275,2]
[404657200,1770388237902,-2224.19831453,0.00010275,2]
[404657201,1770388237912,-2224.19831453,0.00010275,2]
[404657202,1770388237926,-2224.19831453,0.00010275,2]
[404657203,1770388237936,-2224.19831453,0.00010275,2]
[404657204,1770388237946,-2224.19831453,0.00010275,2]
[404657205,1770388237955,-2224.19831453,0.00010275,2]
[404657206,1770388237965,-2224.19831453,0.00010275,2]
[404657207,1770388237975,-2224.19831453,0.00010275,2]
[404657209,1770388237984,-2224.19831453,0.00010275,2]
[404657211,1770388237994,-2224.19831453,0.00010275,2]
[404657213,1770388238003,-2224.19831453,0.00010275,2]
[404657214,1770388238013,-2224.19831453,0.00010275,2]
[404657215,1770388238022,-2224.19831453,0.00010275,2]
[404657216,1770388238032,-2224.19831453,0.00010275,2]
[404657217,1770388238041,-2224.19831453,0.00010275,2]
[404657218,1770388238052,-2224.19831453,0.00010275,2]
[404657219,1770388238072,-2224.19831453,0.00010275,2]
[404657220,1770388238083,-2224.19831453,0.00010275,2]
[404657221,1770388238096,-2224.19831453,0.00010275,2]
[404657223,1770388238105,-2224.19831453,0.00010275,2]
[404657225,1770388238116,-2224.19831453,0.00010275,2]
[404657227,1770388238126,-2045.89238801,0.00010275,2]
[404657230,1770388238142,-178.30592652,0.00010275,2]
[404657232,1770388238152,-2224.19831453,0.00010275,2]
[404657234,1770388238162,-2224.19831453,0.00010275,2]
[404657235,1770388238178,-2224.19831453,0.00010275,2]
[404657236,1770388238189,-2224.19831453,0.00010275,2]
[404657237,1770388238199,-2224.19831453,0.00010275,2]
[404657238,1770388238209,-2224.19831453,0.00010275,2]
[404657239,1770388238219,-230.94337885,0.00010275,2]
[404657240,1770388238230,-1477.76347483,0.00010275,2]
[404657241,1770388238240,-1927.19131448,0.00010275,2]
[404657242,1770388238251,-56030.45314471,0.00010276,2]
[404657243,1770388238263,-1741.48362425,0.00010276,2]
[404657244,1770388238275,-1072.40294018,0.00010276,2]
[404657245,1770388239776,-2107.13524535,0.00010275,2]
[404657246,1770388239786,-2107.13524535,0.00010275,2]
[404657247,1770388239796,-2107.13524535,0.00010275,2]
[404657248,1770388239807,-2107.13524535,0.00010275,2]
[404657249,1770388239816,-2107.13524535,0.00010275,2]
[404657250,1770388239826,-2107.13524535,0.00010275,2]
[404657251,1770388239835,-2107.13524535,0.00010275,2]
[404657252,1770388239844,-2107.13524535,0.00010275,2]
[404657253,1770388239854,-2107.13524535,0.00010275,2]
[404657254,1770388239864,-2107.13524535,0.00010275,2]
[404657255,1770388239875,-2107.13524535,0.00010275,2]
[404657256,1770388239885,-2107.13524535,0.00010275,2]
[404657257,1770388239894,-2107.13524535,0.00010275,2]
[404657258,1770388239903,-2107.13524535,0.00010275,2]
[404657259,1770388239913,-2107.13524535,0.00010275,2]
[404657260,1770388239928,-2107.13524535,0.00010275,2]
[404657261,1770388239938,-510.96197539,0.00010275,2]
[404657262,1770388239950,-1596.17326996,0.00010275,2]
[404657263,1770388239960,-2107.13524535,0.00010275,2]
[404657264,1770388239970,-53.06149472,0.00010275,2]
[404657265,1770388239982,-386.50234645,0.00010275,2]
[404657266,1770388240003,-372.34049029,0.00010275,2]
[404657267,1770388240017,-1256.38003316,0.00010275,2]
[404657268,1770388240045,-38.85088073,0.00010275,2]
[404657269,1770388240055,-347.07189122,0.00010275,2]
[404657270,1770388240072,-290.56649998,0.00010275,2]
[404657271,1770388240088,-505.60542929,0.00010275,2]
[404657272,1770388240100,-963.89142486,0.00010275,2]
[404657273,1770388240111,-306.08129384,0.00010275,2]
[404657274,1770388240123,-1801.05395151,0.00010275,2]
[404657275,1770388240132,-2107.13524535,0.00010275,2]
[404657276,1770388240142,-2107.13524535,0.00010275,2]
[404657277,1770388240152,-2107.13524535,0.00010275,2]
[404657278,1770388240163,-2107.13524535,0.00010275,2]
[404657279,1770388240178,-2107.13524535,0.00010275,2]
[404657280,1770388240187,-2107.13524535,0.00010275,2]
[404657281,1770388240197,-2107.13524535,0.00010275,2]
[404657283,1770388240208,-3427500.87284286,0.00010276,2]
[404657285,1770388240218,-300.0,0.00010276,2]
[404657287,1770388240228,-208.05919324,0.00010276,2]
[404657289,1770388240238,-410.46967655,0.00010276,2]
[404657291,1770388240247,-150.0,0.00010348,2]
[404657293,1770388240257,-150.0,0.00010348,2]
[404657295,1770388240266,-500.55427015,0.00010373,2]
[404657297,1770388240277,-500.0,0.00010373,2]
[404657299,1770388240287,-500.81812257,0.00010373,2]
[404657301,1770388240296,-500.66414486,0.00010373,2]
[404657303,1770388240306,-305.18354468,0.00010373,2]
[404657306,1770388240321,-500.82029329,0.00010373,2]
[404657308,1770388240330,-500.55713691,0.00010373,2]
[404657309,1770388240340,-502.2748959,0.00010373,2]
[404657310,1770388240351,-207.3322894,0.00010373,2]
[404657311,1770388240361,-500.55674805,0.00010373,2]
[404657312,1770388240371,-500.0,0.00010373,2]
[404657313,1770388240380,-500.0,0.00010373,2]
[404657314,1770388240390,-500.0,0.00010373,2]
[404657315,1770388240400,-500.49245945,0.00010373,2]
[404657316,1770388240410,-500.69332376,0.00010373,2]
[404657317,1770388240419,-422.94688137,0.00010373,2]
[404657318,1770388240437,-378.21435572,0.00010373,2]
[404657319,1770388240446,-173.2883025,0.00010373,2]
[404657320,1770388240456,-330.83,0.00010375,2]
[404657321,1770388240466,-250.0,0.00010403,2]
[404657322,1770388240475,-151.0,0.0001047,2]
[404657323,1770388240485,-151.0,0.0001047,2]
[404657324,1770388240715,-151.0,0.0001047,2]
[404657325,1770388240725,-151.0,0.0001047,2]
[404657326,1770388240735,-151.0,0.0001047,2]
[404657327,1770388240745,-151.0,0.0001047,2]
[404657328,1770388240755,-153.37287127,0.0001047,2]
[404657329,1770388240764,-299.21433714,0.0001056,2]
[404657330,1770388240774,-1000.0,0.00010576,2]
[404657331,1770388240782,-500.0,0.00010576,2]
[404657332,1770388240791,-330.83,0.00010649,2]
[404657333,1770388240801,-1852.42,0.0001065,2]
[404657334,1770388240810,-6427.07263497,0.00010713,2]
[404657335,1770388240820,-500.0,0.0001085,2]
[404657336,1770388240829,-501.23794025,0.00010921,2]
[404657337,1770388240838,-1000.0,0.00010921,2]
[404657338,1770388240847,-330.83,0.00010923,2]
[404657339,1770388240856,-4584.8,0.00010959,2]
[404657340,1770388240865,-150.0,0.00010959,2]
[404657341,1770388240875,-150.0,0.00010959,2]
[404657342,1770388240884,-22400.25418677,0.00011099,2]
[404657343,1770388240893,-9461.48187484,0.00011099,2]
[404657344,1770388240903,-166.66,0.00011105,2]
[404657345,1770388240913,-250.0,0.00011194,2]
[404657346,1770388240928,-300.0,0.00011194,2]
[404657347,1770388240937,-330.83,0.00011197,2]
[404657348,1770388240947,-255.0,0.00011291,2]
[404657349,1770388240956,-420.0,0.00011298,2]
[404657350,1770388240966,-420.0,0.00011298,2]
[404657351,1770388240976,-344.0,0.00011298,2]
[404657352,1770388240985,-320.0,0.00011298,2]
[404657353,1770388240995,-1680.0,0.00011301,2]
[404657354,1770388241005,-195.0,0.00011303,2]
[404657355,1770388241014,-300.0,0.00011303,2]
[404657356,1770388241023,-241.00287784,0.00011303,2]
[404657357,1770388241033,-195.0,0.00011303,2]
[404657358,1770388241042,-195.0,0.00011303,2]
[404657359,1770388241051,-250.0,0.00011303,2]
[404657360,1770388241061,-195.0,0.00011303,2]
[404657361,1770388241073,-300.0,0.00011303,2]
[404657362,1770388241083,-195.0,0.00011303,2]
[404657363,1770388241092,-166.66,0.00011339,2]
[404657364,1770388241102,-576.29863876,0.00011468,2]
[404657365,1770388241112,-330.86,0.00011471,2]
[404657366,1770388241122,-166.66,0.00011573,2]
[404657367,1770388241131,-500.0,0.00011647,2]
[404657368,1770388241141,-166.66,0.00011806,2]
[404657369,1770388241150,-166.66,0.0001204,2]
[404657370,1770388241160,-299.21433714,0.0001219,2]
[404657371,1770388241169,-166.66,0.00012274,2]
[404657372,1770388241187,-433.0,0.00012411,2]
[404657373,1770388241197,-587.0,0.00012424,2]
[404657374,1770388241211,-276.0,0.00012424,2]
[404657375,1770388241221,-2351.0,0.00012431,2]
[404657376,1770388241231,-9461.4818748,0.00012628,2]
[404657377,1770388241241,-5616.6537447,0.00013,2]
[404657378,1770388241252,-357.78028329,0.00013,2]
[404657379,1770388241262,-4436.00886337,0.00013,2]
[404657380,1770388241271,-250.0,0.00013446,2]
[404657381,1770388241281,-150.24,0.00013593,2]
[404657382,1770388241291,-736.0,0.00013633,2]
[404657383,1770388241300,-823.0,0.00013663,2]
[404657384,1770388241310,-3292.0,0.00013674,2]
[404657385,1770388241320,-500.0,0.00013698,2]
[404657386,1770388241330,-500.0,0.00013698,2]
[404657387,1770388241340,-500.0,0.00013698,2]
[404657388,1770388241350,-500.0,0.00013698,2]
[404657389,1770388241361,-500.0,0.00013698,2]
[404657390,1770388241370,-392.76776902,0.00013698,2]
[404657391,1770388241381,-500.0,0.00013698,2]
[404657392,1770388241391,-500.0,0.00013698,2]
[404657393,1770388241401,-500.0,0.00013698,2]
[404657394,1770388241410,-500.0,0.00013698,2]
[404657395,1770388241420,-500.0,0.00013698,2]
[404657396,1770388241436,-500.0,0.00013698,2]
[404657397,1770388241445,-500.0,0.00013698,2]
[404657398,1770388241455,-500.0,0.00013698,2]
[404657399,1770388241465,-500.0,0.00013698,2]
[404657400,1770388241475,-500.0,0.00013698,2]
[404657401,1770388241486,-500.0,0.00013698,2]
[404657402,1770388241496,-500.0,0.00013698,2]
[404657403,1770388241506,-500.0,0.00013698,2]
[404657404,1770388241516,-500.0,0.00013698,2]
[404657405,1770388241526,-500.0,0.00013698,2]
[404657406,1770388241536,-202.70654952,0.00013698,2]
[404657407,1770388241547,-500.0,0.00013698,2]
[404657408,1770388241557,-500.0,0.00013698,2]
[404657409,1770388241567,-500.0,0.00013698,2]
[404657410,1770388241577,-500.0,0.00013698,2]
[404657411,1770388241587,-508.97591607,0.00013698,2]
[404657412,1770388241598,-500.0,0.00013698,2]
[404657413,1770388241608,-500.0,0.00013698,2]
[404657414,1770388241617,-500.0,0.00013698,2]
[404657415,1770388241627,-500.0,0.00013698,2]
[404657416,1770388241637,-500.0,0.00013698,2]
[404657417,1770388241646,-500.0,0.00013698,2]
[404657418,1770388241656,-500.0,0.00013698,2]
[404657419,1770388241666,-500.0,0.00013698,2]
[404657420,1770388241679,-500.0,0.00013698,2]
[404657421,1770388241689,-500.0,0.00013698,2]
[404657422,1770388241699,-500.0,0.00013698,2]
[404657423,1770388241709,-449.78062316,0.00013698,2]
[404657424,1770388241719,-500.0,0.00013698,2]
[404657425,1770388241729,-500.0,0.00013698,2]
[404657426,1770388241738,-500.0,0.00013698,2]
[404657427,1770388241748,-500.0,0.00013698,2]
[404657428,1770388241758,-500.0,0.00013698,2]
[404657429,1770388241767,-513.21673603,0.00013698,2]
[404657430,1770388241777,-500.0,0.00013698,2]
[404657431,1770388241786,-500.0,0.00013698,2]
[404657432,1770388241797,-500.0,0.00013698,2]
[404657433,1770388241808,-500.0,0.00013698,2]
[404657434,1770388241817,-500.0,0.00013698,2]
[404657435,1770388241828,-500.0,0.00013698,2]
[404657436,1770388241837,-500.0,0.00013698,2]
[404657437,1770388241847,-415.73037417,0.00013698,2]
[404657438,1770388241857,-660.06,0.00013698,2]
[404657439,1770388241867,-660.06,0.00013698,2]
[404657440,1770388241878,-660.06,0.00013698,2]
[404657441,1770388241888,-660.06,0.00013698,2]
[404657442,1770388241898,-660.06,0.00013698,2]
[404657443,1770388241909,-660.06,0.00013698,2]
[404657444,1770388241919,-660.06,0.00013698,2]
[404657445,1770388241940,-660.06,0.00013698,2]
[404657446,1770388241950,-660.06,0.00013698,2]
[404657447,1770388241960,-660.06,0.00013698,2]
[404657448,1770388241970,-660.06,0.00013698,2]
[404657449,1770388241984,-660.06,0.00013698,2]
[404657450,1770388241994,-660.06,0.00013698,2]
[404657451,1770388242005,-660.06,0.00013698,2]
[404657452,1770388242015,-660.06,0.00013698,2]
[404657453,1770388242025,-660.06,0.00013698,2]
[404657454,1770388242035,-660.06,0.00013698,2]
[404657455,1770388242045,-660.06,0.00013698,2]
[404657456,1770388242055,-660.06,0.00013698,2]
[404657457,1770388242066,-500.0,0.00013698,2]
[404657458,1770388242077,-500.0,0.00013698,2]
[404657459,1770388242089,-500.0,0.00013698,2]
[404657460,1770388242099,-500.0,0.00013698,2]
[404657461,1770388242110,-500.0,0.00013698,2]
[404657462,1770388242120,-500.0,0.00013698,2]
[404657463,1770388242131,-500.0,0.00013698,2]
[404657464,1770388242141,-500.0,0.00013698,2]
[404657465,1770388242150,-500.0,0.00013698,2]
[404657466,1770388242162,-500.0,0.00013698,2]
[404657467,1770388242171,-500.0,0.00013698,2]
[404657468,1770388242192,-500.0,0.00013698,2]
[404657469,1770388242203,-500.0,0.00013698,2]
[404657470,1770388242214,-500.0,0.00013698,2]
[404657471,1770388242225,-500.0,0.00013698,2]
[404657472,1770388242235,-344.36366875,0.00013698,2]
[404657473,1770388242245,-245.91228722,0.00013698,2]
[404657474,1770388242255,-500.0,0.00013698,2]
[404657475,1770388242265,-500.0,0.00013698,2]
[404657476,1770388242275,-500.0,0.00013698,2]
[404657477,1770388242285,-500.0,0.00013698,2]
[404657478,1770388242295,-500.0,0.00013698,2]
[404657479,1770388242305,-500.0,0.00013698,2]
[404657480,1770388242314,-500.0,0.00013698,2]
[404657481,1770388242324,-500.0,0.00013698,2]
[404657482,1770388242334,-500.0,0.00013698,2]
[404657483,1770388242344,-343.52857332,0.00013698,2]
[404657484,1770388242354,-500.0,0.00013698,2]
[404657485,1770388242363,-500.0,0.00013698,2]
[404657486,1770388242373,-500.0,0.00013698,2]
[404657487,1770388242383,-500.0,0.00013698,2]
[404657488,1770388242393,-500.0,0.00013698,2]
[404657489,1770388242403,-500.0,0.00013698,2]
[404657490,1770388242412,-500.0,0.00013698,2]
[404657491,1770388242421,-500.0,0.00013698,2]
[404657492,1770388242438,-500.0,0.00013698,2]
[404657493,1770388242448,-500.0,0.00013698,2]
[404657494,1770388242457,-500.0,0.00013698,2]
[404657495,1770388242467,-500.0,0.00013698,2]
[404657496,1770388242477,-500.0,0.00013698,2]
[404657497,1770388242486,-500.0,0.00013698,2]
[404657498,1770388242495,-500.0,0.00013698,2]
[404657499,1770388242504,-500.0,0.00013698,2]
[404657500,1770388242514,-500.0,0.00013698,2]
[404657501,1770388242523,-500.0,0.00013698,2]
[404657502,1770388242533,-776.96,0.00013698,2]
[404657503,1770388242542,-776.96,0.00013698,2]
[404657504,1770388242552,-776.96,0.00013698,2]
[404657505,1770388242561,-776.96,0.00013698,2]
[404657506,1770388242570,-776.96,0.00013698,2]
[404657507,1770388242579,-776.96,0.00013698,2]
[404657508,1770388242588,-776.96,0.00013698,2]
[404657509,1770388242597,-776.96,0.00013698,2]
[404657510,1770388242606,-776.96,0.00013698,2]
[404657511,1770388242615,-776.96,0.00013698,2]
[404657512,1770388242625,-776.96,0.00013698,2]
[404657513,1770388242634,-776.96,0.00013698,2]
[404657514,1770388242644,-776.96,0.00013698,2]
[404657515,1770388242653,-776.96,0.00013698,2]
[404657516,1770388242662,-776.96,0.00013698,2]
[404657517,1770388242671,-776.96,0.00013698,2]
[404657518,1770388242686,-500.0,0.00013698,2]
[404657519,1770388242695,-776.96,0.00013698,2]
[404657520,1770388242705,-500.0,0.00013698,2]
[404657521,1770388242715,-776.96,0.00013698,2]
[404657522,1770388242724,-272.1278825,0.00013698,2]
[404657523,1770388242734,-500.0,0.00013698,2]
[404657524,1770388242743,-500.0,0.00013698,2]
[404657525,1770388242753,-500.0,0.00013698,2]
[404657526,1770388242767,-500.0,0.00013698,2]
[404657527,1770388242777,-500.0,0.00013698,2]
[404657528,1770388242786,-500.0,0.00013698,2]
[404657529,1770388242795,-500.0,0.00013698,2]
[404657530,1770388242805,-500.0,0.00013698,2]
[404657531,1770388242814,-500.0,0.00013698,2]
[404657532,1770388242823,-500.0,0.00013698,2]
[404657533,1770388242832,-500.0,0.00013698,2]
[404657534,1770388242841,-500.0,0.00013698,2]
[404657535,1770388242850,-500.0,0.00013698,2]
[404657536,1770388242859,-500.0,0.00013698,2]
[404657537,1770388242868,-500.0,0.00013698,2]
[404657538,1770388242878,-600.86,0.00013698,2]
[404657539,1770388242887,-500.0,0.00013698,2]
[404657540,1770388242896,-500.0,0.00013698,2]
[404657541,1770388242905,-500.0,0.00013698,2]
[404657542,1770388242915,-500.0,0.00013698,2]
[404657543,1770388242930,-500.0,0.00013698,2]
[404657544,1770388242940,-628.10981545,0.00013698,2]
[404657545,1770388242950,-522.96240732,0.00013698,2]
[404657546,1770388242960,-500.0,0.00013698,2]
[404657547,1770388242969,-500.0,0.00013698,2]
[404657548,1770388242979,-500.0,0.00013698,2]
[404657549,1770388242988,-500.0,0.00013698,2]
[404657550,1770388242998,-500.0,0.00013698,2]
[404657551,1770388243007,-500.0,0.00013698,2]
[404657552,1770388243017,-500.0,0.00013698,2]
[404657553,1770388243026,-500.0,0.00013698,2]
[404657554,1770388243036,-258.90808423,0.00013698,2]
[404657555,1770388243045,-500.0,0.00013698,2]
[404657556,1770388243055,-500.0,0.00013698,2]
[404657557,1770388243068,-500.0,0.00013698,2]
[404657558,1770388243077,-500.0,0.00013698,2]
[404657559,1770388243086,-500.0,0.00013698,2]
[404657560,1770388243097,-500.0,0.00013698,2]
[404657561,1770388243108,-500.0,0.00013698,2]
[404657562,1770388243117,-500.0,0.00013698,2]
[404657563,1770388243126,-500.0,0.00013698,2]
[404657564,1770388243136,-508.28,0.00013698,2]
[404657565,1770388243146,-500.0,0.00013698,2]
[404657566,1770388243156,-500.0,0.00013698,2]
[404657567,1770388243166,-500.0,0.00013698,2]
[404657568,1770388243180,-500.0,0.00013698,2]
[404657569,1770388243190,-500.0,0.00013698,2]
[404657570,1770388243200,-500.0,0.00013698,2]
[404657571,1770388243210,-500.0,0.00013698,2]
[404657572,1770388243220,-500.0,0.00013698,2]
[404657573,1770388243230,-500.0,0.00013698,2]
[404657574,1770388243239,-500.0,0.00013698,2]
[404657575,1770388243249,-500.0,0.00013698,2]
[404657576,1770388243259,-179.76637926,0.00013698,2]
[404657577,1770388243269,-13456.85,0.00013699,2]
[404657578,1770388243279,-200.0,0.00013699,2]
[404657579,1770388243288,-150.99,0.00013699,2]
[404657580,1770388243298,-999.99,0.00013699,2]
[404657581,1770388243308,-9999.99,0.00013699,2]
[404657582,1770388243318,-23559.75,0.00013699,2]
[404657584,1770388243328,-9999.99,0.00013699,2]
[404657586,1770388243338,-9999.99,0.00013699,2]
[404657587,1770388243347,-500.0,0.00013699,2]
[404657588,1770388243356,-500.0,0.00013699,2]
[404657590,1770388243366,-162.09631962,0.00013699,2]
[404657592,1770388243375,-500.0,0.00013699,2]
[404657594,1770388243384,-161.65464171,0.00013699,2]
[404657596,1770388243393,-500.0,0.00013699,2]
[404657598,1770388243402,-500.0,0.00013699,2]
[404657600,1770388243412,-500.0,0.00013699,2]
[404657602,1770388243422,-500.0,0.00013699,2]
[404657604,1770388243438,-500.0,0.00013699,2]
[404657605,1770388243448,-500.0,0.00013699,2]
[404657606,1770388243457,-500.0,0.00013699,2]
[404657607,1770388243467,-500.0,0.00013699,2]
[404657608,1770388243476,-500.0,0.00013699,2]
[404657609,1770388243486,-500.0,0.00013699,2]
[404657610,1770388243495,-500.0,0.00013699,2]
[404657611,1770388243505,-500.0,0.00013699,2]
[404657612,1770388243514,-500.0,0.00013699,2]
[404657613,1770388243523,-500.0,0.00013699,2]
[404657614,1770388243532,-500.0,0.00013699,2]
[404657615,1770388243541,-500.0,0.00013699,2]
[404657616,1770388243551,-500.0,0.00013699,2]
[404657617,1770388243560,-500.0,0.00013699,2]
[404657618,1770388243570,-500.80352602,0.00013699,2]
[404657619,1770388243579,-501.17265493,0.00013699,2]
[404657620,1770388243589,-500.0,0.00013699,2]
[404657621,1770388243598,-500.93151703,0.00013699,2]
[404657622,1770388243608,-500.0,0.00013699,2]
[404657623,1770388243618,-500.0,0.00013699,2]
[404657624,1770388243628,-500.0,0.00013699,2]
[404657625,1770388243637,-500.0,0.00013699,2]
[404657626,1770388243647,-500.0,0.00013699,2]
[404657627,1770388243656,-500.0,0.00013699,2]
[404657628,1770388243666,-500.0,0.00013699,2]
[404657629,1770388243681,-500.0,0.00013699,2]
[404657630,1770388243690,-5500.76,0.000137,2]
[404657631,1770388243699,-5500.76,0.000137,2]
[404657632,1770388243709,-5132.86,0.000137,2]
[404657633,1770388243719,-5132.86,0.000137,2]
[404657634,1770388243733,-5132.86,0.000137,2]
[404657635,1770388243743,-5132.86,0.000137,2]
[404657636,1770388243753,-5132.86,0.000137,2]
[404657637,1770388243762,-666.0,0.00013789,2]
[404657638,1770388243772,-22400.25418674,0.0001379,2]
[404657639,1770388243781,-500.0,0.00014247,2]
[404657640,1770388243790,-776.96,0.00014504,2]
[404657641,1770388243800,-324.99,0.00014689,2]
[404657642,1770388243809,-9461.4818748,0.00014981,2]
[404657643,1770388243819,-938.0,0.00014989,2]
[404657644,1770388243828,-250.0,0.00015,2]
[404657645,1770388243837,-2052.7152301,0.00015,2]
[404657646,1770388243846,-7991.45940556,0.00015,2]
[404657647,1770388243855,-1152.0,0.00015025,2]
[404657648,1770388243865,-4609.0,0.00015042,2]
[404657649,1770388243874,-299.21433714,0.00015449,2]
[404657650,1770388243883,-2046.94248477,0.00015807,2]